bitfinex/quotes_BTCUSD_20251001
["timestamp","ask_amount","ask_price","bid_price","bid_amount"]
[1759344182884,0.17618081,117210.0,117200.0,0.81616783]
[1759344183239,0.17618081,117210.0,117200.0,0.98681629]
[1759344183445,0.21089682,117210.0,117200.0,0.98681629]
[1759344183840,0.17618081,117210.0,117200.0,0.98681629]
[1759344185510,0.17618081,117210.0,117200.0,0.23428783]
[1759344185731,0.17618081,117210.0,117200.0,0.47616783]
[1759344188418,0.17618081,117210.0,117200.0,0.23428783]
[1759344188624,0.26129081,117210.0,117200.0,0.47616783]
[1759344188924,0.31183624,117210.0,117200.0,0.47616783]
[1759344191123,0.31183624,117210.0,117200.0,0.47420177]
[1759344194159,0.31183624,117210.0,117200.0,0.23232177]
[1759344194366,0.31183624,117210.0,117200.0,0.47424177]
[1759344195958,0.31183624,117210.0,117200.0,0.23232177]
[1759344203022,0.34198814,117210.0,117200.0,0.23232177]
[1759344203220,0.70762188,117210.0,117200.0,0.23232177]
[1759344203428,0.70762188,117210.0,117200.0,0.22907177]
[1759344203649,1.14908407,117210.0,117200.0,0.22907177]
[1759344204124,1.06747475,117210.0,117200.0,0.22907177]
[1759344204320,1.06746659,117210.0,117200.0,0.22907177]
[1759344204523,1.03731469,117210.0,117200.0,0.22907177]
[1759344205000,1.06746659,117210.0,117200.0,0.22907177]
[1759344206762,0.17066302,117190.0,117180.0,0.0008687]
[1759344206971,0.62058548,117190.0,117180.0,0.0008687]
[1759344207200,0.62578548,117190.0,117180.0,0.0008687]
[1759344207406,0.65142141,117190.0,117180.0,0.0008687]
[1759344209118,0.71485039,117190.0,117180.0,0.0008687]
[1759344219645,0.71485039,117190.0,117180.0,0.0008687]
[1759344222873,0.561162,117190.0,117180.0,0.0058187]
[1759344223079,0.319202,117190.0,117180.0,0.17649629]
[1759344223286,0.19629528,117200.0,117180.0,0.17649629]
[1759344223493,0.49773154,117200.0,117190.0,0.00296]
[1759344223669,0.49773154,117200.0,117190.0,0.17362302]
[1759344223833,0.49773154,117200.0,117190.0,0.17561302]
[1759344224434,0.56546794,117200.0,117190.0,0.17561302]
[1759344224639,0.56546794,117200.0,117190.0,0.00495]
[1759344225658,0.56546794,117200.0,117190.0,0.17561302]
[1759344226296,0.49773154,117200.0,117190.0,0.19267932]
[1759344226701,0.08511,117200.0,117190.0,0.19267932]
[1759344226874,0.4215925,117210.0,117200.0,0.17064846]
[1759344227073,0.5067025,117210.0,117200.0,0.17263846]
[1759344227280,0.49817081,117210.0,117200.0,0.18426227]
[1759344228853,0.49817081,117210.0,117200.0,0.00495]
[1759344229049,0.49817081,117210.0,117200.0,0.17559846]
[1759344229495,0.49817081,117210.0,117200.0,0.17263846]
[1759344231262,0.50015081,117210.0,117200.0,0.17263846]
[1759344231463,0.17064846,117200.0,117190.0,0.18219191]
[1759344231664,0.17064846,117200.0,117190.0,0.59076889]
[1759344231882,0.17064846,117200.0,117190.0,0.76358191]
[1759344233312,0.17064846,117200.0,117190.0,0.52138191]
[1759344233506,0.17262846,117200.0,117190.0,0.25283889]
[1759344233709,0.17262846,117200.0,117190.0,0.18138191]
[1759344235548,0.17066302,117190.0,117180.0,0.42220016]
[1759344235890,0.17066302,117190.0,117180.0,0.76431016]
[1759344236114,0.24101139,117200.0,117180.0,0.76431016]
[1759344236314,0.24101139,117200.0,117180.0,0.76754016]
[1759344237768,0.17066302,117190.0,117180.0,0.76754016]
[1759344237973,0.17066302,117190.0,117180.0,0.52546016]
[1759344238189,0.17066302,117190.0,117180.0,0.77273393]
[1759344238682,0.32612139,117200.0,117190.0,0.17066302]
[1759344238854,0.32612139,117200.0,117180.0,0.77273393]
[1759344239267,0.17066302,117190.0,117180.0,0.77273393]
[1759344239422,0.17561302,117190.0,117180.0,0.18854393]
[1759344239634,0.26072302,117190.0,117180.0,0.42201006]
[1759344240513,0.26072302,117190.0,117180.0,0.42416006]
[1759344240514,0.25775302,117190.0,117180.0,0.42416006]
[1759344241301,0.08511,117190.0,117180.0,0.42416006]
[1759344241498,0.14832136,117190.0,117180.0,0.42416006]
[1759344241737,0.14832136,117190.0,117180.0,0.42739006]
[1759344241973,0.31898438,117190.0,117180.0,0.42416006]
[1759344242938,0.37498396,117190.0,117180.0,0.42416006]
[1759344243348,0.37696396,117190.0,117180.0,0.42416006]
[1759344243959,0.32096438,117190.0,117180.0,0.42416006]
[1759344245215,0.32096438,117190.0,117180.0,0.21224431]
[1759344245433,0.32393438,117190.0,117180.0,0.3829219]
[1759344245996,0.15327136,117190.0,117180.0,0.3829219]
[1759344246165,0.15030136,117190.0,117180.0,0.3848719]
[1759344246954,0.32096438,117190.0,117180.0,0.3848719]
[1759344247574,0.32096438,117190.0,117180.0,0.39327977]
[1759344248988,0.32096438,117190.0,117180.0,0.39132977]
[1759344249190,0.32393438,117190.0,117180.0,0.39132977]
[1759344249780,0.33583329,117190.0,117180.0,0.39132977]
[1759344250193,0.32393438,117190.0,117180.0,0.39132977]
[1759344251172,0.32393438,117190.0,117180.0,0.17908546]
[1759344251393,0.32393438,117190.0,117180.0,0.42104546]
[1759344253645,0.32096438,117190.0,117180.0,0.42299546]
[1759344255153,0.15030136,117190.0,117180.0,0.67900546]
[1759344255321,0.14832136,117190.0,117180.0,0.67900546]
[1759344255527,0.14832136,117190.0,117180.0,0.68022546]
[1759344258127,0.4247225,117210.0,117190.0,0.17066302]
[1759344258394,0.08511,117200.0,117190.0,0.44493932]
[1759344258533,0.08511,117200.0,117190.0,0.42982302]
[1759344258891,0.08511,117200.0,117190.0,0.42860302]
[1759344265008,0.08511,117200.0,117190.0,0.67052302]
[1759344267399,0.08511,117200.0,117190.0,0.42860302]
[1759344267615,0.08511,117200.0,117190.0,0.67052302]
[1759344273196,0.08511,117200.0,117190.0,0.4644231]
[1759344273397,0.08511,117200.0,117190.0,0.63508612]
[1759344274538,0.08511,117200.0,117190.0,0.39851311]
[1759344274913,0.08511,117200.0,117190.0,0.65449311]
[1759344275123,0.08511,117200.0,117190.0,0.42664302]
[1759344275324,0.08511,117200.0,117190.0,0.66856302]
[1759344275924,0.09025,117200.0,117190.0,0.66856302]
[1759344276125,0.26089846,117200.0,117190.0,0.42664302]
[1759344276384,0.26089846,117200.0,117190.0,0.66856302]
[1759344277565,0.26089846,117200.0,117190.0,0.42664302]
[1759344277742,0.26089846,117200.0,117190.0,0.66856302]
[1759344278182,0.26089846,117200.0,117190.0,0.42664302]
[1759344278365,0.26089846,117200.0,117190.0,0.66856302]
[1759344278731,0.26089846,117200.0,117190.0,0.42664302]
[1759344278938,0.30495156,117200.0,117190.0,0.42664302]
[1759344279152,0.30495156,117200.0,117190.0,0.25598]
[1759344279366,0.30495156,117200.0,117190.0,0.4979]
[1759344281141,0.30495156,117200.0,117190.0,0.25598]
[1759344281352,0.30495156,117200.0,117190.0,0.4979]
[1759344284137,0.30495156,117200.0,117190.0,0.25598]
[1759344284347,0.54687156,117200.0,117190.0,0.25598]
[1759344284554,0.55486661,117200.0,117190.0,0.25598]
[1759344286425,0.54687156,117200.0,117190.0,0.25598]
[1759344287794,0.5623722,117200.0,117190.0,0.25598]
[1759344291243,0.54687156,117200.0,117190.0,0.25598]
[1759344293056,0.58780841,117200.0,117190.0,0.25598]
[1759344294025,1.03330841,117200.0,117190.0,0.25598]
[1759344307279,1.06346031,117200.0,117190.0,0.25598]
[1759344307488,0.776086,117200.0,117190.0,0.25598]
[1759344307694,0.70125846,117200.0,117190.0,0.42664302]
[1759344308986,0.53061,117200.0,117190.0,0.42664302]
[1759344309843,0.4215525,117210.0,117200.0,0.17064846]
[1759344309999,0.2647425,117210.0,117200.0,0.17064846]
[1759344310195,0.2647425,117210.0,117190.0,0.42664302]
[1759344310363,0.34009959,117210.0,117190.0,0.42664302]
[1759344311118,0.25575846,117200.0,117190.0,0.4979]
[1759344311523,0.26066846,117200.0,117190.0,0.4979]
[1759344319718,0.26066846,117200.0,117190.0,0.25598]
[1759344319927,0.50258846,117200.0,117190.0,0.25598]
[1759344320207,0.57834627,117200.0,117190.0,0.25598]
[1759344327641,0.25575846,117200.0,117190.0,0.42664302]
[1759344328075,0.25575846,117200.0,117190.0,0.25598]
[1759344328232,0.25575846,117200.0,117190.0,0.42664302]
[1759344328579,0.25575846,117200.0,117190.0,0.4979]
[1759344328737,0.25575846,117200.0,117190.0,0.66856302]
[1759344328927,0.28382954,117200.0,117190.0,0.66856302]
[1759344329334,0.28382954,117200.0,117190.0,0.42664302]
[1759344329531,0.28382954,117200.0,117190.0,0.66852302]
[1759344329817,0.25575846,117200.0,117190.0,0.66852302]
[1759344330445,0.08511,117200.0,117190.0,0.66852302]
[1759344330717,0.44596691,117210.0,117200.0,0.17064846]
[1759344330914,0.44596691,117210.0,117200.0,0.4436833]
[1759344330915,0.53107691,117210.0,117200.0,0.4436833]
[1759344331150,0.53107691,117210.0,117200.0,0.42661846]
[1759344334449,0.00046691,117210.0,117200.0,0.42661846]
[1759344334635,0.00046691,117210.0,117200.0,0.51537846]
[1759344334926,0.00046691,117210.0,117200.0,0.88100359]
[1759344336859,0.00046691,117210.0,117200.0,0.89617776]
[1759344350613,0.00046691,117210.0,117200.0,0.98128776]
[1759344352221,0.00046691,117210.0,117200.0,1.09128776]
[1759344352425,0.00046691,117210.0,117200.0,1.12143966]
[1759344354906,0.00046691,117210.0,117200.0,9.12143966]
[1759344356935,0.00046691,117210.0,117200.0,9.18247137]
[1759344357129,0.00046691,117210.0,117200.0,9.27118284]
[1759344357792,0.00046691,117210.0,117200.0,8.9881049]
[1759344357987,0.00046691,117210.0,117200.0,9.15875336]
[1759344358611,0.00046691,117210.0,117200.0,9.40059336]
[1759344360575,0.00144427,117230.0,117220.0,0.51061934]
[1759344360762,0.00144427,117230.0,117220.0,1.05979604]
[1759344361007,0.00144427,117230.0,117220.0,1.1837097]
[1759344361434,0.00144427,117230.0,117220.0,1.20932641]
[1759344361834,0.00144427,117230.0,117220.0,1.00554751]
[1759344362013,0.00144427,117230.0,117220.0,1.17616685]
[1759344365484,0.00144427,117230.0,117220.0,1.20631875]
[1759344365877,0.00144427,117230.0,117220.0,1.23210981]
[1759344366528,0.00144427,117230.0,117220.0,1.20631875]
[1759344367465,1e-08,117230.0,117220.0,9.20631875]
[1759344367594,1e-08,117230.0,117220.0,9.23210981]
[1759344368852,1e-08,117230.0,117220.0,9.32194981]
[1759344370294,1e-08,117230.0,117220.0,9.08014981]
[1759344370432,1e-08,117230.0,117220.0,9.73979875]
[1759344377435,1e-08,117230.0,117220.0,9.05435875]
[1759344377842,1e-08,117230.0,117220.0,9.73971875]
[1759344386597,1e-08,117230.0,117220.0,9.05435875]
[1759344386754,1e-08,117230.0,117220.0,9.73971875]
[1759344386931,1e-08,117230.0,117220.0,10.07326998]
[1759344387840,1e-08,117230.0,117220.0,9.38790998]
[1759344388070,0.00293001,117230.0,117220.0,9.98342998]
[1759344388269,0.00490001,117230.0,117220.0,8.96451875]
[1759344388495,0.00490001,117230.0,117220.0,9.64987875]
[1759344388733,1e-08,117230.0,117220.0,9.64987875]
[1759344389093,1e-08,117230.0,117220.0,8.96451875]
[1759344389301,1e-08,117230.0,117220.0,9.64987875]
[1759344390958,1e-08,117230.0,117220.0,9.71083405]
[1759344391188,1e-08,117230.0,117220.0,9.02547405]
[1759344391400,1e-08,117230.0,117220.0,9.71079405]
[1759344393143,1e-08,117230.0,117220.0,9.02547405]
[1759344393347,1e-08,117230.0,117220.0,9.71079405]
[1759344393913,1e-08,117230.0,117220.0,9.64983875]
[1759344394905,1e-08,117230.0,117220.0,9.29597875]
[1759344395106,1e-08,117230.0,117220.0,9.64983875]
[1759344395484,1e-08,117230.0,117220.0,9.7261252]
[1759344397149,1e-08,117230.0,117220.0,9.0408052]
[1759344397358,1e-08,117230.0,117220.0,9.7261252]
[1759344400957,0.00490001,117230.0,117220.0,9.6376852]
[1759344401171,0.00490001,117230.0,117220.0,9.7264052]
[1759344401387,1e-08,117230.0,117220.0,9.7264052]
[1759344403687,1e-08,117230.0,117220.0,9.0408052]
[1759344403892,1e-08,117230.0,117220.0,9.7263252]
[1759344404320,1e-08,117230.0,117220.0,10.05961547]
[1759344404826,1e-08,117230.0,117220.0,9.98332902]
[1759344405060,1e-08,117230.0,117220.0,10.05962475]
[1759344405410,1e-08,117230.0,117220.0,10.05966475]
[1759344407127,1e-08,117230.0,117220.0,9.37410475]
[1759344407261,1e-08,117230.0,117220.0,10.05962475]
[1759344409539,1e-08,117230.0,117220.0,9.98332902]
[1759344413319,0.00303,117250.0,117240.0,0.17059024]
[1759344413550,0.17927444,117270.0,117260.0,0.17056114]
[1759344413800,0.17927444,117270.0,117260.0,0.40915114]
[1759344414005,0.18136444,117270.0,117260.0,0.71639114]
[1759344414206,0.18439444,117270.0,117260.0,0.71639114]
[1759344414414,0.18526247,117270.0,117260.0,0.71639114]
[1759344416328,0.18526247,117270.0,117260.0,0.74053007]
[1759344416536,0.18526247,117270.0,117260.0,0.82933007]
[1759344420268,0.17673463,117270.0,117260.0,0.82933007]
[1759344420448,0.00618803,117270.0,117260.0,0.82933007]
[1759344420617,0.17673463,117270.0,117260.0,0.82933007]
[1759344421037,0.00618803,117270.0,117260.0,0.82933007]
[1759344421239,0.00106803,117270.0,117260.0,0.83145007]
[1759344422604,0.00106803,117270.0,117260.0,0.82933007]
[1759344423039,0.00618803,117270.0,117260.0,0.82933007]
[1759344423443,0.17673463,117270.0,117260.0,0.82933007]
[1759344423769,0.17673463,117270.0,117260.0,0.82925007]
[1759344424586,0.17673463,117270.0,117260.0,0.82933007]
[1759344424845,0.00618803,117270.0,117260.0,0.82933007]
[1759344425172,0.00618803,117270.0,117260.0,0.49869007]
[1759344425369,0.00618803,117270.0,117260.0,0.82933007]
[1759344426202,0.00618803,117270.0,117260.0,0.49869007]
[1759344426412,0.00618803,117270.0,117260.0,0.82933007]
[1759344428995,0.17673463,117270.0,117260.0,0.82933007]
[1759344429589,0.00618803,117270.0,117260.0,0.82933007]
[1759344430437,0.17673463,117270.0,117260.0,0.82933007]
[1759344430792,0.00618803,117270.0,117260.0,0.82933007]
[1759344433356,0.00618803,117270.0,117260.0,0.82921007]
[1759344434981,0.00618803,117270.0,117260.0,0.80507114]
[1759344435182,0.17673463,117270.0,117260.0,0.80507114]
[1759344435382,0.17673463,117270.0,117260.0,0.71631114]
[1759344435592,0.17673463,117270.0,117260.0,0.80503114]
[1759344435807,0.00618803,117270.0,117260.0,0.80503114]
[1759344442131,0.00315803,117270.0,117260.0,0.80717114]
[1759344442344,0.00609803,117270.0,117260.0,0.80503114]
[1759344442732,0.00315803,117270.0,117260.0,0.80717114]
[1759344442970,0.00315803,117270.0,117260.0,0.80741114]
[1759344444365,0.00325849,117270.0,117260.0,0.80741114]
[1759344446614,0.00325849,117270.0,117260.0,0.47669114]
[1759344446856,0.00325849,117270.0,117260.0,0.80737114]
[1759344448056,0.00116849,117270.0,117260.0,0.80737114]
[1759344450949,0.00116849,117270.0,117260.0,0.80729114]
[1759344451622,0.00116849,117270.0,117260.0,0.80981114]
[1759344451930,0.00116849,117270.0,117260.0,1.17542024]
[1759344452135,0.00116849,117270.0,117260.0,1.23647478]
[1759344452560,0.00116849,117270.0,117260.0,1.17542024]
[1759344456192,0.00116849,117270.0,117260.0,1.59382051]
[1759344456392,0.00116849,117270.0,117260.0,1.71268388]
[1759344457784,0.00116849,117270.0,117260.0,1.8835806]
[1759344458095,0.00116849,117270.0,117260.0,1.01634831]
[1759344458301,0.00116849,117270.0,117260.0,1.42890945]
[1759344459503,0.00116849,117270.0,117260.0,1.42886945]
[1759344461656,0.00116849,117270.0,117260.0,1.09818945]
[1759344461851,0.00116849,117270.0,117260.0,1.45894135]
[1759344462654,0.00116849,117270.0,117260.0,1.79223162]
[1759344466310,0.00116849,117270.0,117260.0,1.79200044]
[1759344468198,0.00116849,117270.0,117260.0,1.85289716]
[1759344469325,0.00116849,117270.0,117260.0,1.59200812]
[1759344472941,0.00116849,117270.0,117260.0,9.59200812]
[1759344473881,0.00106803,117270.0,117260.0,9.59200812]
[1759344479341,0.00106803,117270.0,117260.0,9.65290484]
[1759344479951,0.00106803,117270.0,117260.0,9.31978484]
[1759344480201,0.00106803,117270.0,117260.0,10.00498484]
[1759344480401,0.00106803,117270.0,117260.0,9.94660812]
[1759344480719,0.00106803,117270.0,117260.0,9.61354903]
[1759344482154,0.00106803,117270.0,117260.0,9.61098903]
[1759344482378,0.00106803,117270.0,117260.0,9.61350903]
[1759344486348,0.00106803,117270.0,117260.0,8.92834903]
[1759344486567,0.00106803,117270.0,117260.0,9.61362903]
[1759344486766,0.00106803,117270.0,117260.0,9.47934956]
[1759344486945,0.00106803,117270.0,117260.0,9.48276364]
[1759344487150,0.00106803,117270.0,117260.0,9.73859364]
[1759344496766,0.00106803,117270.0,117260.0,9.75395575]
[1759344499522,0.00106803,117270.0,117260.0,9.75143575]
[1759344500282,0.00321803,117270.0,117260.0,9.06554575]
[1759344500483,0.00624803,117270.0,117260.0,9.75070575]
[1759344500879,0.00106803,117270.0,117260.0,9.75131575]
[1759344501084,0.00106803,117270.0,117260.0,9.75169575]
[1759344508868,0.00106803,117270.0,117260.0,9.06653575]
[1759344509066,0.00106803,117270.0,117260.0,9.75169575]
[1759344509269,0.00106803,117270.0,117260.0,9.06653575]
[1759344509569,0.00106803,117270.0,117260.0,9.75169575]
[1759344509984,0.00106803,117270.0,117260.0,9.66301575]
[1759344510190,0.00083687,117270.0,117260.0,9.75131575]
[1759344510339,0.00288687,117270.0,117260.0,9.75131575]
[1759344510537,0.00083687,117270.0,117260.0,9.75131575]
[1759344511171,0.00083687,117270.0,117260.0,9.75169575]
[1759344512796,0.00088356,117270.0,117260.0,9.75131575]
[1759344513007,0.00088356,117270.0,117260.0,9.75169575]
[1759344515155,0.00088356,117270.0,117260.0,9.75131575]
[1759344515483,0.00088356,117270.0,117260.0,9.75169575]
[1759344515890,0.00088356,117270.0,117260.0,9.75131575]
[1759344516096,0.00088356,117270.0,117260.0,9.75169575]
[1759344516291,0.00088356,117270.0,117260.0,9.75131575]
[1759344516750,0.00088356,117270.0,117260.0,9.75169575]
[1759344517357,0.00088356,117270.0,117260.0,9.75131575]
[1759344517677,0.00088356,117270.0,117260.0,9.75169575]
[1759344518983,0.00088356,117270.0,117260.0,9.75131575]
[1759344519330,0.00088356,117270.0,117260.0,9.75169575]
[1759344520170,0.00088356,117270.0,117260.0,9.75131575]
[1759344520562,0.00088356,117270.0,117260.0,9.75169575]
[1759344524620,0.00088356,117270.0,117260.0,9.75131575]
[1759344525007,0.00088356,117270.0,117260.0,9.75169575]
[1759344526124,0.00088356,117270.0,117260.0,9.06653575]
[1759344526325,0.00088356,117270.0,117260.0,9.75169575]
[1759344526576,0.00088356,117270.0,117260.0,9.75165575]
[1759344528308,0.00088356,117270.0,117260.0,9.75127575]
[1759344528509,0.00088356,117270.0,117260.0,9.75165575]
[1759344529140,0.00088356,117270.0,117260.0,9.75127575]
[1759344529545,0.00088356,117270.0,117260.0,9.75165575]
[1759344532222,0.00088356,117270.0,117260.0,9.75127575]
[1759344532595,0.00088356,117270.0,117260.0,9.75165575]
[1759344533192,0.00604356,117270.0,117260.0,9.06554575]
[1759344533428,0.00604356,117270.0,117260.0,9.75066575]
[1759344534313,0.00088356,117270.0,117260.0,9.75127575]
[1759344535465,0.00290356,117270.0,117260.0,8.98922757]
[1759344535669,0.00604356,117270.0,117260.0,9.75066575]
[1759344536193,0.00290356,117270.0,117260.0,9.75127575]
[1759344536395,0.00604356,117270.0,117260.0,8.95907567]
[1759344536599,0.00604356,117270.0,117260.0,1.2006842]
[1759344537930,0.00604356,117270.0,117260.0,0.95523522]
[1759344538671,0.00088356,117270.0,117260.0,0.62552522]
[1759344538884,0.00088356,117270.0,117260.0,0.95584522]
[1759344540961,0.00290356,117270.0,117260.0,0.95584522]
[1759344541210,0.00088356,117270.0,117260.0,0.95584522]
[1759344541393,0.00290356,117270.0,117260.0,1.04455669]
[1759344541739,0.00088356,117270.0,117260.0,1.04455669]
[1759344542898,0.00290356,117270.0,117260.0,1.38455669]
[1759344543098,0.00604356,117270.0,117260.0,1.38455669]
[1759344543775,0.00290356,117270.0,117260.0,1.38455669]
[1759344543958,0.00290356,117270.0,117260.0,1.05423669]
[1759344544172,0.00604356,117270.0,117260.0,1.38394669]
[1759344544365,0.00290356,117270.0,117260.0,1.38455669]
[1759344544569,0.00088356,117270.0,117260.0,1.38455669]
[1759344547350,0.00290356,117270.0,117260.0,1.38455669]
[1759344547667,0.00604356,117270.0,117260.0,1.38455669]
[1759344548052,0.00290356,117270.0,117260.0,1.38455669]
[1759344548263,0.00088356,117270.0,117260.0,1.38455669]
[1759344548651,0.00290356,117270.0,117260.0,1.38455669]
[1759344549169,0.00290356,117270.0,117260.0,1.38455669]
[1759344550569,0.00088356,117270.0,117260.0,1.38455669]
[1759344553087,0.00088356,117270.0,117260.0,1.05423669]
[1759344553247,0.00604356,117270.0,117260.0,1.38394669]
[1759344553437,0.00088356,117270.0,117260.0,1.38455669]
[1759344554006,0.00088356,117270.0,117260.0,1.38493669]
[1759344555521,0.00088356,117270.0,117260.0,1.38455669]
[1759344556160,0.00088356,117270.0,117260.0,1.05423669]
[1759344556375,0.00088356,117270.0,117260.0,1.38455669]
[1759344557406,0.00088356,117270.0,117260.0,1.38493669]
[1759344558227,0.00088356,117270.0,117260.0,1.38455669]
[1759344560407,0.00088356,117270.0,117260.0,1.38493669]
[1759344562430,0.00088356,117270.0,117260.0,1.38455669]
[1759344562881,0.00088356,117270.0,117260.0,1.38493669]
[1759344563285,0.00088356,117270.0,117260.0,1.46125487]
[1759344563488,0.00088356,117270.0,117260.0,1.82448786]
[1759344563667,0.00088356,117270.0,117260.0,9.82448786]
[1759344572030,0.00088356,117270.0,117260.0,9.75884524]
[1759344572243,0.00088356,117270.0,117260.0,9.68252706]
[1759344572439,0.00088356,117270.0,117260.0,9.35220706]
[1759344572658,0.00088356,117270.0,117260.0,9.64290463]
[1759344573585,0.00088356,117270.0,117260.0,9.43562248]
[1759344573795,0.00088356,117270.0,117260.0,9.60997763]
[1759344579267,0.00088356,117270.0,117260.0,9.60959763]
[1759344579479,0.00088356,117270.0,117260.0,9.60997763]
[1759344582098,0.00088356,117270.0,117260.0,9.67089897]
[1759344583724,0.00088356,117270.0,117260.0,9.68591581]
[1759344583946,0.00088356,117270.0,117260.0,9.74629581]
[1759344597670,0.00088356,117270.0,117260.0,9.74591581]
[1759344597875,0.00088356,117270.0,117260.0,9.74629581]
[1759344598080,0.00302356,117270.0,117260.0,9.74591581]
[1759344598288,0.00088356,117270.0,117260.0,9.74591581]
[1759344598911,0.00608356,117270.0,117260.0,9.06022581]
[1759344599207,0.00302356,117270.0,117260.0,9.74587581]
[1759344599410,0.00088356,117270.0,117260.0,9.74587581]
[1759344600415,0.00088356,117270.0,117260.0,9.74625581]
[1759344601239,0.00088356,117270.0,117260.0,9.74587581]
[1759344601781,0.00088356,117270.0,117260.0,9.65719581]
[1759344601985,0.00088356,117270.0,117260.0,9.74587581]
[1759344602751,0.00088356,117270.0,117260.0,9.74625581]
[1759344603178,0.00088356,117270.0,117260.0,9.74587581]
[1759344603455,0.00088356,117270.0,117260.0,9.74625581]
[1759344604673,0.00088356,117270.0,117260.0,9.74587581]
[1759344606008,0.00088356,117270.0,117260.0,9.74625581]
[1759344607886,0.00088356,117270.0,117260.0,9.74621581]
[1759344608805,0.00088356,117270.0,117260.0,9.74583581]
[1759344609412,0.00088356,117270.0,117260.0,9.74621581]
[1759344614241,0.00088356,117270.0,117260.0,9.74583581]
[1759344614438,0.00088356,117270.0,117260.0,9.74621581]
[1759344614639,0.00088356,117270.0,117260.0,10.07930979]
[1759344615222,0.00088356,117270.0,117260.0,9.74621581]
[1759344616512,0.00088356,117270.0,117260.0,9.83599581]
[1759344616712,0.00088356,117270.0,117260.0,9.74621581]
[1759344617872,0.00088356,117270.0,117260.0,9.06117581]
[1759344618225,0.00088356,117270.0,117260.0,9.74621581]
[1759344622886,0.00088356,117270.0,117260.0,9.74583581]
[1759344623441,0.00088356,117270.0,117260.0,9.74621581]
[1759344624654,0.00088356,117270.0,117260.0,9.06079581]
[1759344624854,0.00088356,117270.0,117260.0,9.74621581]
[1759344625731,0.00088356,117270.0,117260.0,9.74583581]
[1759344626157,0.00088356,117270.0,117260.0,9.74621581]
[1759344627192,0.00088356,117270.0,117260.0,9.74583581]
[1759344627390,0.00088356,117270.0,117260.0,9.74621581]
[1759344628962,0.00088356,117270.0,117260.0,9.74583581]
[1759344630297,1e-08,117270.0,117260.0,10.07930979]
[1759344630868,1e-08,117270.0,117260.0,10.1062882]
[1759344631143,1e-08,117270.0,117260.0,10.02997002]
[1759344631368,1e-08,117270.0,117260.0,10.10614491]
[1759344631574,4e-05,117290.0,117280.0,0.54068396]
[1759344631747,8.668e-05,117290.0,117280.0,1.27280426]
[1759344631907,8.668e-05,117290.0,117280.0,1.27341426]
[1759344632124,0.00052054,117290.0,117280.0,1.27341426]
[1759344632330,0.00052054,117290.0,117280.0,1.29901593]
[1759344633270,1e-08,117290.0,117280.0,9.65946832]
[1759344633478,8e-05,117300.0,117290.0,0.20066942]
[1759344633643,8e-05,117300.0,117290.0,0.80643899]
[1759344633892,0.00217,117300.0,117290.0,0.95601407]
[1759344634108,0.00519,117300.0,117290.0,0.95601407]
[1759344634294,0.00519,117300.0,117290.0,0.89293486]
[1759344634497,0.00519,117300.0,117290.0,0.98161486]
[1759344635512,0.00519,117300.0,117290.0,0.65141486]
[1759344635866,0.00519,117300.0,117290.0,0.98161486]
[1759344636524,0.00519,117300.0,117290.0,0.50180831]
[1759344636736,0.00519,117300.0,117290.0,0.83200831]
[1759344638170,0.00519,117300.0,117290.0,0.50180831]
[1759344638373,0.00519,117300.0,117290.0,0.83200831]
[1759344639236,0.00540689,117300.0,117290.0,0.83200831]
[1759344639425,0.00540689,117300.0,117290.0,0.92071978]
[1759344640299,0.00540689,117300.0,117290.0,0.59051978]
[1759344640483,0.00540689,117300.0,117290.0,0.92071978]
[1759344640934,0.00540689,117300.0,117290.0,0.83203978]
[1759344641147,0.00238689,117300.0,117290.0,0.95148168]
[1759344641322,0.00238689,117300.0,117290.0,1.37659168]
[1759344641323,0.00029689,117300.0,117290.0,1.37659168]
[1759344641524,0.00029689,117300.0,117290.0,1.43748676]
[1759344642513,0.00029689,117300.0,117290.0,1.37659168]
[1759344642913,0.00029689,117300.0,117290.0,1.37697168]
[1759344643277,0.00029689,117300.0,117290.0,1.40395009]
[1759344643655,0.00029689,117300.0,117290.0,1.40357009]
[1759344644043,0.00029689,117300.0,117290.0,1.37659168]
[1759344646507,0.00540689,117300.0,117290.0,1.01919978]
[1759344646750,0.00540689,117300.0,117290.0,1.26071978]
[1759344646951,0.00540689,117300.0,117290.0,0.93051978]
[1759344647312,0.00540689,117300.0,117290.0,1.26071978]
[1759344648323,0.00029689,117300.0,117290.0,1.37659168]
[1759344648533,0.00029689,117300.0,117290.0,1.40395009]
[1759344649236,0.0002,117320.0,117310.0,0.54064034]
[1759344649575,0.00024668,117320.0,117310.0,1.211674]
[1759344649777,0.00535668,117320.0,117310.0,1.211674]
[1759344649944,0.00535668,117320.0,117310.0,1.21548717]
[1759344650140,0.00535668,117320.0,117310.0,1.18890527]
[1759344651083,0.00535668,117320.0,117310.0,1.20381407]
[1759344655514,0.00068038,117320.0,117310.0,1.34704438]
[1759344655714,0.00068038,117320.0,117310.0,1.34666438]
[1759344658428,0.00068038,117320.0,117310.0,1.31968597]
[1759344659533,0.00592038,117320.0,117310.0,1.23039597]
[1759344659762,0.00592038,117320.0,117310.0,1.31907597]
[1759344660476,0.00592038,117320.0,117310.0,0.92353041]
[1759344660733,0.00592038,117320.0,117310.0,1.16501041]
[1759344660951,0.00592038,117320.0,117310.0,1.07633041]
[1759344661170,0.00592038,117320.0,117310.0,0.83485041]
[1759344661383,0.00592038,117320.0,117310.0,1.16501041]
[1759344661839,0.00592038,117320.0,117310.0,1.25372188]
[1759344663193,0.00592038,117320.0,117310.0,1.16501041]
[1759344664507,0.00068038,117320.0,117310.0,1.16562041]
[1759344664918,0.00068038,117320.0,117310.0,1.22562041]
[1759344665127,0.00281038,117320.0,117310.0,1.22562041]
[1759344665695,0.00281038,117320.0,117310.0,0.89546041]
[1759344665880,0.00281038,117320.0,117310.0,1.31433188]
[1759344666602,0.00068038,117320.0,117310.0,0.98417188]
[1759344666803,0.00068038,117320.0,117310.0,1.31461188]
[1759344668924,0.00068038,117320.0,117310.0,1.42987378]
[1759344670248,0.00592038,117320.0,117310.0,1.42987378]
[1759344670728,0.00592038,117320.0,117310.0,1.42926378]
[1759344673363,0.00592038,117320.0,117310.0,0.55485041]
[1759344673725,0.17639429,117320.0,117310.0,0.79291724]
[1759344674723,0.00592038,117320.0,117310.0,0.79291724]
[1759344676116,0.00068038,117320.0,117310.0,0.79352724]
[1759344676617,0.00068038,117320.0,117310.0,0.81912449]
[1759344676825,0.00068038,117320.0,117310.0,0.90783596]
[1759344677004,0.00281038,117320.0,117310.0,0.90783596]
[1759344677333,0.00281038,117320.0,117310.0,0.90722596]
[1759344677740,0.00592038,117320.0,117310.0,0.90722596]
[1759344688349,0.00068038,117320.0,117310.0,0.90783596]
[1759344690218,0.00272038,117320.0,117310.0,0.90783596]
[1759344692001,0.00272038,117320.0,117310.0,0.68367571]
[1759344692162,0.00272038,117320.0,117310.0,0.85416415]
[1759344692595,0.00578038,117320.0,117310.0,0.85416415]
[1759344693837,0.00578038,117320.0,117310.0,0.85355415]
[1759344694570,0.00578038,117320.0,117310.0,0.85416415]